[Event "Polofinale MCR junioru 2023"]
[Site "Czech Republic"]
[Date "2023.11.17"]
[Round "8.9"]
[White "Bezdek, Tomas"]
[Black "Prazak, Daniel"]
[Result "1/2-1/2"]
[TimeControl "90 min per 40 moves + 15 min + 30 sec / move from move 1"]
[WhiteFideId "23733551"]
[BlackFideId "23709456"]
[WhiteElo "2078"]
[BlackElo "2103"]

1. e4 {[%clk 01:30:14]} {[%emt 00:00:45]} e5 {[%clk 01:29:51]} {[%emt
00:01:01]} 2. Nf3 {[%clk 01:30:27]} {[%emt 00:00:25]} Nc6 {[%clk 01:29:54]}
{[%emt 00:00:28]} 3. Bc4 {[%clk 01:30:47]} {[%emt 00:00:09]} Bc5 {[%clk
01:29:52]} {[%emt 00:00:32]} 4. c3 {[%clk 01:31:06]} {[%emt 00:00:11]} Nf6
{[%clk 01:30:13]} {[%emt 00:00:08]} 5. d3 {[%clk 01:31:30]} {[%emt 00:00:06]}
O-O {[%clk 01:30:34]} {[%emt 00:00:09]} 6. O-O {[%clk 01:31:54]} {[%emt
00:00:05]} d5 {[%clk 01:30:54]} {[%emt 00:00:12]} 7. exd5 {[%clk 01:32:14]}
{[%emt 00:00:10]} Nxd5 {[%clk 01:31:15]} {[%emt 00:00:09]} 8. Re1 {[%clk
01:32:11]} {[%emt 00:00:33]} Bg4 {[%clk 01:31:33]} {[%emt 00:00:12]} 9. Nbd2
{[%clk 01:32:11]} {[%emt 00:00:30]} Nb6 {[%clk 01:31:07]} {[%emt 00:00:56]} 10.
Ne4 {[%clk 01:25:43]} {[%emt 00:06:58]} Be7 {[%clk 01:23:19]} {[%emt 00:08:19]}
11. Bb3 {[%clk 01:23:04]} {[%emt 00:03:08]} Qd7 {[%clk 01:13:18]} {[%emt
00:10:30]} 12. h3 {[%clk 01:14:26]} {[%emt 00:09:07]} Bf5 {[%clk 01:11:07]}
{[%emt 00:02:44]} 13. Bg5 {[%clk 01:06:47]} {[%emt 00:08:08]} Rad8 {[%clk
01:06:11]} {[%emt 00:05:26]} 14. Bxe7 {[%clk 01:04:41]} {[%emt 00:02:36]} Qxe7
{[%clk 01:05:58]} {[%emt 00:00:42]} 15. Qe2 {[%clk 01:04:39]} {[%emt 00:00:33]}
Bg6 {[%clk 01:03:16]} {[%emt 00:03:11]} 16. Rad1 {[%clk 01:01:58]} {[%emt
00:03:12]} Rfe8 {[%clk 01:01:47]} {[%emt 00:01:59]} 17. Qe3 {[%clk 00:45:28]}
{[%emt 00:17:01]} h6 {[%clk 00:41:05]} {[%emt 00:21:13]} 18. Qc5 {[%clk
00:35:21]} {[%emt 00:10:36]} Qd7 {[%clk 00:38:49]} {[%emt 00:02:47]} 19. a4
{[%clk 00:29:30]} {[%emt 00:06:21]} Bh5 {[%clk 00:35:02]} {[%emt 00:04:16]} 20.
Kh2 {[%clk 00:20:29]} {[%emt 00:09:30]} Bxf3 {[%clk 00:32:54]} {[%emt
00:02:40]} 21. gxf3 {[%clk 00:20:41]} {[%emt 00:00:18]} Qe7 {[%clk 00:29:55]}
{[%emt 00:03:28]} 22. Qxe7 {[%clk 00:19:29]} {[%emt 00:01:42]} Rxe7 {[%clk
00:29:14]} {[%emt 00:01:11]} 23. Nc5 {[%clk 00:18:08]} {[%emt 00:01:51]} Nd7
{[%clk 00:18:49]} {[%emt 00:10:55]} 24. Nxd7 {[%clk 00:15:35]} {[%emt
00:03:02]} Rexd7 {[%clk 00:18:44]} {[%emt 00:00:35]} 25. Bc2 {[%clk 00:12:55]}
{[%emt 00:03:11]} f6 {[%clk 00:17:31]} {[%emt 00:01:41]} 26. b4 {[%clk
00:13:20]} {[%emt 00:00:07]} Ne7 {[%clk 00:16:53]} {[%emt 00:01:07]} 27. Re4
{[%clk 00:06:38]} {[%emt 00:07:13]} Nd5 {[%clk 00:10:13]} {[%emt 00:07:09]} 28.
Rc4 {[%clk 00:06:02]} {[%emt 00:01:02]} c6 {[%clk 00:07:30]} {[%emt 00:03:19]}
29. b5 {[%clk 00:05:06]} {[%emt 00:01:25]} cxb5 {[%clk 00:05:06]} {[%emt
00:02:54]} 30. axb5 {[%clk 00:05:31]} {[%emt 00:00:05]} Nf4 {[%clk 00:04:25]}
{[%emt 00:01:12]} 31. Ra1 {[%clk 00:05:10]} {[%emt 00:00:50]} b6 {[%clk
00:03:27]} {[%emt 00:01:28]} 32. Kg3 {[%clk 00:04:25]} {[%emt 00:01:15]} Nxd3
{[%clk 00:02:10]} {[%emt 00:01:46]} 33. Bxd3 {[%clk 00:02:43]} {[%emt
00:02:13]} Rxd3 {[%clk 00:02:32]} {[%emt 00:00:08]} 34. Rxa7 {[%clk 00:03:11]}
{[%emt 00:00:03]} R8d7 {[%clk 00:02:51]} {[%emt 00:00:10]} 35. Rxd7 {[%clk
00:03:17]} {[%emt 00:00:25]} Rxd7 {[%clk 00:03:11]} {[%emt 00:00:09]} 36. Rc6
{[%clk 00:03:44]} {[%emt 00:00:03]} Rd3 {[%clk 00:02:42]} {[%emt 00:01:00]} 37.
c4 {[%clk 00:03:14]} {[%emt 00:01:00]} Rd4 {[%clk 00:03:02]} {[%emt 00:00:09]}
38. Rxb6 {[%clk 00:03:38]} {[%emt 00:00:07]} Rxc4 {[%clk 00:03:28]} {[%emt
00:00:04]} 39. Rb8+ {[%clk 00:02:25]} {[%emt 00:01:42]} Kf7 {[%clk 00:03:37]}
{[%emt 00:00:21]} 40. b6 {[%clk 00:02:51]} {[%emt 00:00:05]} Rb4 {[%clk
00:03:57]} {[%emt 00:00:09]} 41. b7 {[%clk 00:03:15]} {[%emt 00:00:06]} Kg6
{[%clk 00:04:01]} {[%emt 00:00:26]} 42. Kg2 {[%clk 00:02:45]} {[%emt 00:01:00]}
Rb1 {[%clk 00:03:43]} {[%emt 00:00:48]} 43. Kg3 {[%clk 00:02:33]} {[%emt
00:00:42]} Kf5 {[%clk 00:03:20]} {[%emt 00:00:53]} 44. Kh4 {[%clk 00:12:05]}
{[%emt 00:06:27]} Rb3 {[%clk 00:16:13]} {[%emt 00:03:09]} 45. Kg3 {[%clk
00:09:35]} {[%emt 00:03:00]} Kg5 {[%clk 00:16:27]} {[%emt 00:00:16]} 46. Ra8
{[%clk 00:08:25]} {[%emt 00:01:40]} Rxb7 {[%clk 00:16:51]} {[%emt 00:00:06]} 47.
Ra4 {[%clk 00:08:44]} {[%emt 00:00:10]} Kf5 {[%clk 00:16:19]} {[%emt 00:01:03]}
48. Rc4 {[%clk 00:08:31]} {[%emt 00:00:44]} Rb3 {[%clk 00:15:00]} {[%emt
00:01:48]} 49. Rg4 {[%clk 00:08:17]} {[%emt 00:00:43]} g5 {[%clk 00:14:58]}
{[%emt 00:00:33]} 50. Ra4 {[%emt 00:00:07]} h5 {[%clk 00:15:03]} {[%emt
00:00:23]} 51. Rc4 {[%clk 00:07:29]} {[%emt 00:01:43]} Rd3 {[%clk 00:14:56]}
{[%emt 00:00:38]} 52. Ra4 {[%clk 00:07:31]} {[%emt 00:00:27]} Rd4 {[%clk
00:14:22]} {[%emt 00:01:04]} 53. Ra6 {[%clk 00:07:47]} {[%emt 00:00:13]} g4
{[%clk 00:13:04]} {[%emt 00:01:48]} 54. hxg4+ {[%clk 00:07:35]} {[%emt
00:00:43]} hxg4 {[%clk 00:13:27]} {[%emt 00:00:08]} 55. fxg4+ {[%clk 00:08:01]}
{[%emt 00:00:03]} Rxg4+ {[%clk 00:13:48]} {[%emt 00:00:09]} 56. Kf3 {[%clk
00:08:18]} {[%emt 00:00:11]} Rb4 {[%clk 00:13:52]} {[%emt 00:00:27]} 57. Ke3
{[%clk 00:07:22]} {[%emt 00:01:26]} Kg5 {[%clk 00:13:24]} {[%emt 00:00:59]} 58.
Ra8 {[%clk 00:07:18]} {[%emt 00:00:33]} Kf5 {[%clk 00:13:20]} {[%emt 00:00:35]}
59. Rf8 {[%clk 00:07:01]} {[%emt 00:00:47]} Rb3+ {[%clk 00:13:36]} {[%emt
00:00:13]} 60. Ke2 {[%clk 00:07:17]} {[%emt 00:00:14]} e4 {[%clk 00:13:58]}
{[%emt 00:00:09]} 61. Rf7 {[%clk 00:05:21]} {[%emt 00:02:24]} Ra3 {[%clk
00:14:04]} {[%emt 00:00:26]} 62. Rf8 {[%clk 00:05:44]} {[%emt 00:00:06]} Ke5
{[%clk 00:14:30]} {[%emt 00:00:05]} 63. Rf7 {[%clk 00:05:44]} {[%emt 00:00:30]}
f5 {[%clk 00:14:54]} {[%emt 00:00:07]} 64. Rf8 {[%clk 00:05:46]} {[%emt
00:00:27]} Kf4 {[%clk 00:15:06]} {[%emt 00:00:17]} 65. Rf7 {[%clk 00:04:50]}
{[%emt 00:01:27]} Ra2+ {[%clk 00:14:08]} {[%emt 00:01:28]} 66. Kf1 {[%clk
00:05:06]} {[%emt 00:00:13]} Kg4 {[%clk 00:13:21]} {[%emt 00:01:17]} 67. Rg7+
{[%clk 00:04:56]} {[%emt 00:00:41]} Kf3 {[%clk 00:13:35]} {[%emt 00:00:16]} 68.
Rg3+ {[%clk 00:05:04]} {[%emt 00:00:21]} Kf4 {[%clk 00:13:59]} {[%emt
00:00:07]} 69. Rg8 {[%clk 00:05:25]} {[%emt 00:00:09]} e3 {[%clk 00:11:59]}
{[%emt 00:02:30]} 70. fxe3+ {[%clk 00:05:50]} {[%emt 00:00:06]} Kf3 {[%clk
00:12:21]} {[%emt 00:00:07]} 71. Kg1 {[%clk 00:04:14]} {[%emt 00:02:06]} Ra1+
{[%clk 00:11:18]} {[%emt 00:01:33]} 72. Kh2 {[%clk 00:04:36]} {[%emt 00:00:08]}
Kxe3 {[%clk 00:11:43]} {[%emt 00:00:05]} 73. Rg3+ {[%clk 00:04:57]} {[%emt
00:00:08]} Kf2 {[%clk 00:11:37]} {[%emt 00:00:36]} 74. Rg2+ {[%clk 00:05:21]}
{[%emt 00:00:07]} Kf3 {[%clk 00:12:03]} {[%emt 00:00:04]} 75. Rg3+ {[%clk
00:05:46]} {[%emt 00:00:05]} Kf4 {[%clk 00:12:30]} {[%emt 00:00:03]} 76. Rb3
{[%clk 00:06:06]} {[%emt 00:00:09]} Ra2+ {[%clk 00:12:54]} {[%emt 00:00:07]} 77.
Kg1 {[%clk 00:06:23]} {[%emt 00:00:12]} Kg4 {[%clk 00:13:21]} {[%emt 00:00:04]}
78. Kf1 {[%clk 00:06:19]} {[%emt 00:00:33]} f4 {[%clk 00:13:48]} {[%emt
00:00:04]} 79. Rc3 {[%clk 00:06:41]} {[%emt 00:00:08]} Ra5 {[%clk 00:14:05]}
{[%emt 00:00:13]} 80. Rb3 {[%clk 00:05:53]} {[%emt 00:01:18]} Ra4 {[%clk
00:14:22]} {[%emt 00:00:13]} 81. Kf2 {[%clk 00:05:53]} {[%emt 00:00:28]} f3
{[%clk 00:14:40]} {[%emt 00:00:13]} 82. Rb8 {[%clk 00:05:50]} {[%emt 00:00:32]}
Ra2+ {[%clk 00:15:06]} {[%emt 00:00:07]} 83. Kf1 {[%clk 00:06:10]} {[%emt
00:00:08]} 1/2-1/2

[Event "Polofinale MCR junioru 2023"]
[Site "Czech Republic"]
[Date "2023.11.17"]
[Round "8.10"]
[White "Winter, Ondrej"]
[Black "Svacina, Tobias"]
[Result "0-1"]
[TimeControl "90 min per 40 moves + 15 min + 30 sec / move from move 1"]
[WhiteFideId "23702192"]
[BlackFideId "385859"]
[WhiteElo "2163"]
[BlackElo "1941"]

1. e4 {[%clk 01:30:56]} {[%emt 00:00:03]} c5 {[%clk 01:30:00]} {[%emt
00:01:01]} 2. Nf3 {[%clk 01:31:22]} {[%emt 00:00:05]} Nc6 {[%clk 01:29:19]}
{[%emt 00:01:11]} 3. Bb5 {[%clk 01:30:56]} {[%emt 00:00:55]} g6 {[%clk
01:28:41]} {[%emt 00:01:08]} 4. Bxc6 {[%clk 01:31:10]} {[%emt 00:00:17]} bxc6
{[%clk 01:28:06]} {[%emt 00:01:05]} 5. O-O {[%clk 01:31:31]} {[%emt 00:00:08]}
Bg7 {[%clk 01:27:06]} {[%emt 00:01:30]} 6. Re1 {[%clk 01:31:45]} {[%emt
00:00:16]} Qc7 {[%clk 01:26:41]} {[%emt 00:00:56]} 7. d3 {[%emt 00:02:31]} e5
{[%clk 01:24:16]} {[%emt 00:00:45]} 8. Nc3 {[%clk 01:30:55]} Nf6 {[%clk
01:22:25]} {[%emt 00:03:50]} 9. h3 {[%clk 01:30:34]} {[%emt 00:01:25]} O-O
{[%clk 01:22:00]} 10. Be3 {[%clk 01:27:54]} {[%emt 00:02:59]} d6 11. Qd2 {[%emt
00:06:22]} Rb8 {[%clk 01:17:24]} {[%emt 00:00:15]} 12. Reb1 {[%clk 01:23:06]}
Ne8 {[%clk 01:11:22]} {[%emt 00:11:50]} 13. a3 {[%clk 01:18:14]} {[%emt
00:05:23]} a5 {[%clk 01:11:07]} {[%emt 00:00:44]} 14. Bh6 {[%clk 01:18:01]}
{[%emt 00:00:43]} f5 {[%clk 01:02:30]} {[%emt 00:09:08]} 15. Bxg7 {[%clk
01:18:24]} {[%emt 00:00:07]} Nxg7 {[%clk 01:02:26]} {[%emt 00:00:33]} 16. exf5
{[%clk 01:17:50]} {[%emt 00:01:04]} Bxf5 {[%clk 00:58:22]} {[%emt 00:04:34]} 17.
Qe3 {[%clk 01:12:24]} {[%emt 00:05:57]} Rb7 {[%clk 00:52:10]} {[%emt 00:06:43]}
18. a4 {[%clk 01:08:48]} {[%emt 00:04:05]} c4 {[%clk 00:44:04]} {[%emt
00:08:36]} 19. g3 {[%clk 00:58:23]} {[%emt 00:10:54]} cxd3 {[%clk 00:37:19]}
{[%emt 00:07:15]} 20. g4 {[%clk 00:58:31]} dxc2 {[%clk 00:37:41]} 21. gxf5
{[%clk 00:58:52]} Rxb2 {[%clk 00:27:45]} {[%emt 00:10:36]} 22. Rc1 g5 23. fxg6
{[%clk 00:55:05]} hxg6 {[%clk 00:27:24]} {[%emt 00:00:50]} 24. Ne4 {[%clk
00:43:57]} {[%emt 00:11:39]} d5 {[%clk 00:21:19]} {[%emt 00:06:35]} 25. Nc5
{[%clk 00:42:30]} {[%emt 00:01:57]} e4 {[%clk 00:17:58]} {[%emt 00:03:50]} 26.
Qc3 {[%clk 00:34:25]} {[%emt 00:08:36]} Rb1 {[%clk 00:06:28]} {[%emt 00:12:00]}
27. Nd4 {[%clk 00:27:18]} {[%emt 00:07:37]} Rxf2 {[%clk 00:04:58]} {[%emt
00:02:00]} 28. Kxf2 {[%clk 00:27:25]} {[%emt 00:00:23]} Qf4+ {[%clk 00:05:17]}
{[%emt 00:00:11]} 29. Ke2 {[%clk 00:26:42]} {[%emt 00:01:13]} Qxc1 {[%clk
00:05:15]} {[%emt 00:00:32]} 30. Nde6 {[%clk 00:26:09]} {[%emt 00:01:02]} Qf1+
{[%clk 00:05:21]} {[%emt 00:00:24]} 0-1

[Event "Polofinale MCR junioru 2023"]
[Site "Czech Republic"]
[Date "2023.11.17"]
[Round "8.11"]
[White "Ocelak, Jakub"]
[Black "Rousek, Jan"]
[Result "1-0"]
[TimeControl "90 min per 40 moves + 15 min + 30 sec / move from move 1"]
[WhiteFideId "23707933"]
[BlackFideId "386669"]
[WhiteElo "2238"]
[BlackElo "2006"]

1. b3 {[%clk 01:29:53]} {[%emt 00:01:07]} d5 {[%clk 01:26:03]} {[%emt
00:04:56]} 2. Bb2 {[%clk 01:30:22]} {[%emt 00:00:02]} c5 {[%clk 01:25:18]}
{[%emt 00:01:14]} 3. e3 {[%clk 01:30:50]} {[%emt 00:00:02]} Nc6 {[%clk
01:24:36]} {[%emt 00:01:13]} 4. Bb5 {[%clk 01:30:59]} {[%emt 00:00:21]} e6
{[%clk 01:23:17]} {[%emt 00:01:49]} 5. Nf3 {[%clk 01:28:32]} {[%emt 00:02:57]}
Nf6 {[%clk 01:18:52]} {[%emt 00:04:54]} 6. Ne5 {[%clk 01:22:28]} {[%emt
00:06:35]} Qb6 {[%clk 01:13:34]} {[%emt 00:05:48]} 7. Bxc6+ {[%clk 01:16:56]}
{[%emt 00:06:01]} bxc6 {[%clk 01:13:43]} {[%emt 00:00:21]} 8. O-O {[%clk
01:17:14]} {[%emt 00:00:12]} Ba6 {[%clk 01:12:45]} {[%emt 00:01:28]} 9. d3
{[%clk 01:17:27]} {[%emt 00:00:17]} Be7 {[%clk 01:10:56]} {[%emt 00:02:19]} 10.
Nd2 {[%clk 01:15:41]} {[%emt 00:02:16]} O-O {[%clk 01:09:49]} {[%emt 00:01:37]}
11. Qe2 {[%clk 01:15:39]} {[%emt 00:00:33]} Rfd8 {[%clk 01:06:37]} {[%emt
00:03:42]} 12. f4 {[%clk 01:09:10]} {[%emt 00:06:59]} c4 {[%clk 00:41:53]}
{[%emt 00:25:14]} 13. Rf3 {[%clk 00:59:48]} {[%emt 00:09:52]} cxd3 {[%clk
00:18:25]} {[%emt 00:23:59]} 14. cxd3 {[%clk 00:59:35]} {[%emt 00:00:42]} Ne4
{[%clk 00:14:29]} {[%emt 00:04:26]} 15. Rh3 {[%clk 00:51:37]} {[%emt 00:08:28]}
Nf6 {[%clk 00:07:15]} {[%emt 00:07:43]} 16. Ndf3 {[%clk 00:50:03]} {[%emt
00:02:05]} Nd7 {[%clk 00:04:14]} {[%emt 00:03:31]} 17. Nxd7 {[%clk 00:49:34]}
{[%emt 00:00:59]} Rxd7 {[%clk 00:04:09]} {[%emt 00:00:35]} 18. Ne5 {[%clk
00:49:54]} {[%emt 00:00:10]} Rb7 {[%clk 00:03:29]} {[%emt 00:01:10]} 19. Qh5
{[%clk 00:50:01]} {[%emt 00:00:24]} 1-0

[Event "Polofinale MCR junioru 2023"]
[Site "Czech Republic"]
[Date "2023.11.17"]
[Round "8.12"]
[White "Fizer, Marek"]
[Black "Jasso, Matej"]
[Result "1-0"]
[TimeControl "90 min per 40 moves + 15 min + 30 sec / move from move 1"]
[WhiteFideId "391980"]
[BlackFideId "23710748"]
[WhiteElo "2162"]
[BlackElo "2033"]

1. e4 {[%clk 01:30:55]} {[%emt 00:00:04]} e6 {[%clk 01:30:33]} {[%emt
00:00:28]} 2. d4 {[%clk 01:31:12]} {[%emt 00:00:12]} d5 {[%clk 01:30:57]}
{[%emt 00:00:06]} 3. Nc3 {[%clk 01:31:08]} {[%emt 00:00:34]} Bb4 {[%clk
01:31:23]} {[%emt 00:00:05]} 4. e5 {[%clk 01:31:05]} {[%emt 00:00:32]} c5
{[%clk 01:31:48]} {[%emt 00:00:06]} 5. a3 {[%clk 01:30:44]} {[%emt 00:00:51]}
Ba5 {[%clk 01:32:10]} {[%emt 00:00:08]} 6. b4 {[%clk 01:30:02]} {[%emt
00:01:12]} cxd4 {[%clk 01:31:32]} {[%emt 00:01:08]} 7. Nb5 {[%clk 01:17:45]}
{[%emt 00:12:46]} Bb6 {[%clk 01:29:23]} {[%emt 00:02:40]} 8. Bd3 {[%clk
01:11:30]} {[%emt 00:06:45]} Nc6 {[%clk 01:23:45]} {[%emt 00:06:07]} 9. Qg4
{[%clk 00:54:58]} {[%emt 00:17:01]} Kf8 {[%clk 01:16:26]} {[%emt 00:07:50]} 10.
Nf3 {[%clk 00:51:51]} {[%emt 00:03:37]} a6 {[%clk 01:06:39]} {[%emt 00:10:18]}
11. Nbxd4 {[%clk 00:50:48]} {[%emt 00:01:33]} Nxd4 {[%clk 00:57:27]} {[%emt
00:09:41]} 12. Nxd4 {[%clk 00:50:53]} {[%emt 00:00:25]} Qc7 {[%clk 00:57:38]}
{[%emt 00:00:20]} 13. O-O {[%clk 00:45:34]} {[%emt 00:05:48]} Ne7 {[%clk
00:55:48]} {[%emt 00:02:20]} 14. Nf3 {[%clk 00:35:18]} {[%emt 00:10:46]} Bd7
{[%clk 00:45:33]} {[%emt 00:10:47]} 15. Qf4 {[%clk 00:27:56]} {[%emt 00:07:52]}
Kg8 {[%clk 00:42:44]} {[%emt 00:03:18]} 16. a4 {[%clk 00:19:50]} {[%emt
00:08:38]} d4 {[%clk 00:22:06]} {[%emt 00:21:07]} 17. Ng5 {[%clk 00:10:45]}
{[%emt 00:09:34]} Be8 {[%clk 00:21:29]} {[%emt 00:01:08]} 18. Qg3 {[%clk
00:08:40]} {[%emt 00:02:34]} Bc6 {[%clk 00:17:26]} {[%emt 00:04:33]} 19. Ba3
{[%clk 00:06:31]} {[%emt 00:02:40]} Bd5 {[%clk 00:04:26]} {[%emt 00:13:30]} 20.
Rfe1 {[%clk 00:02:41]} {[%emt 00:04:20]} Qd8 {[%clk 00:00:58]} {[%emt
00:03:58]} 21. Ne4 {[%clk 00:00:46]} {[%emt 00:02:24]} Bxe4 {[%clk 00:01:24]}
{[%emt 00:00:05]} 22. Bxe4 {[%clk 00:00:50]} {[%emt 00:00:26]} Qd7 {[%clk
00:01:11]} {[%emt 00:00:42]} 23. b5 {[%clk 00:00:50]} {[%emt 00:00:31]} Ng6
{[%clk 00:01:04]} {[%emt 00:00:36]} 24. Bd6 {[%clk 00:00:57]} {[%emt 00:00:23]}
Rc8 {[%clk 00:00:42]} {[%emt 00:00:53]} 25. bxa6 {[%clk 00:00:50]} {[%emt
00:00:38]} bxa6 {[%clk 00:01:06]} {[%emt 00:00:06]} 26. Reb1 {[%clk 00:00:46]}
{[%emt 00:00:33]} Bd8 {[%clk 00:00:37]} {[%emt 00:00:59]} 27. Rb7 {[%clk
00:00:51]} {[%emt 00:00:25]} Qe8 {[%clk 00:00:59]} {[%emt 00:00:07]} 28. Qd3
{[%clk 00:00:40]} {[%emt 00:00:41]} f5 {[%clk 00:00:34]} {[%emt 00:00:55]} 29.
Bf3 {[%clk 00:00:40]} {[%emt 00:00:31]} Nh4 {[%clk 00:00:33]} {[%emt 00:00:31]}
30. Be2 {[%clk 00:00:37]} {[%emt 00:00:32]} Qc6 {[%clk 00:00:40]} {[%emt
00:00:23]} 31. Bf3 {[%clk 00:00:47]} {[%emt 00:00:21]} Nxf3+ {[%clk 00:00:34]}
{[%emt 00:00:36]} 32. Qxf3 {[%clk 00:01:12]} {[%emt 00:00:05]} Qxc2 {[%clk
00:01:01]} {[%emt 00:00:04]} 33. h3 {[%clk 00:00:37]} {[%emt 00:01:05]} Qc3
{[%clk 00:01:02]} {[%emt 00:00:28]} 34. Qh5 {[%clk 00:00:32]} {[%emt 00:00:35]}
Qxa1+ {[%clk 00:00:47]} {[%emt 00:00:45]} 35. Kh2 {[%clk 00:00:58]} {[%emt
00:00:03]} g6 {[%clk 00:00:36]} {[%emt 00:00:41]} 36. Qh6 {[%clk 00:01:24]}
{[%emt 00:00:05]} Bc7 {[%clk 00:00:35]} {[%emt 00:00:31]} 37. Rxc7 {[%clk
00:01:48]} {[%emt 00:00:05]} 1-0

[Event "Polofinale MCR junioru 2023"]
[Site "Czech Republic"]
[Date "2023.11.17"]
[Round "8.13"]
[White "Hlavina, Matous"]
[Black "Mametev, Artem"]
[Result "1-0"]
[TimeControl "90 min per 40 moves + 15 min + 30 sec / move from move 1"]
[WhiteFideId "386650"]
[BlackFideId "23710195"]
[WhiteElo "2134"]
[BlackElo "2024"]

1. e4 {[%clk 01:30:50]} {[%emt 00:00:09]} c5 {[%clk 01:28:35]} {[%emt
00:02:26]} 2. Nf3 {[%clk 01:31:16]} {[%emt 00:00:03]} d6 {[%clk 01:28:28]}
{[%emt 00:00:37]} 3. d4 {[%clk 01:31:41]} {[%emt 00:00:05]} cxd4 {[%clk
01:28:56]} {[%emt 00:00:03]} 4. Nxd4 {[%clk 01:32:03]} {[%emt 00:00:07]} Nf6
{[%clk 01:29:22]} {[%emt 00:00:03]} 5. Nc3 {[%clk 01:32:29]} {[%emt 00:00:06]}
a6 {[%clk 01:29:49]} {[%emt 00:00:03]} 6. Be2 {[%clk 01:32:30]} {[%emt
00:00:29]} e5 {[%clk 01:30:09]} {[%emt 00:00:10]} 7. Nb3 {[%clk 01:32:55]}
{[%emt 00:00:04]} Be7 {[%clk 01:30:35]} {[%emt 00:00:05]} 8. Bg5 {[%clk
01:33:20]} {[%emt 00:00:05]} Be6 {[%clk 01:29:57]} {[%emt 00:01:07]} 9. Bxf6
{[%clk 01:33:17]} {[%emt 00:00:33]} Bxf6 {[%clk 01:30:22]} {[%emt 00:00:06]} 10.
O-O {[%clk 01:33:33]} {[%emt 00:00:14]} O-O {[%clk 01:30:22]} {[%emt 00:00:30]}
11. Qd3 {[%clk 01:31:37]} {[%emt 00:02:25]} Be7 {[%clk 00:55:39]} {[%emt
00:35:14]} 12. Rfd1 {[%clk 01:30:54]} {[%emt 00:01:12]} Nd7 {[%clk 00:34:51]}
{[%emt 00:21:19]} 13. Bf3 {[%clk 01:26:27]} {[%emt 00:04:56]} Nf6 {[%clk
00:34:53]} {[%emt 00:00:29]} 14. Nd2 {[%clk 01:23:21]} {[%emt 00:03:36]} Rc8
{[%clk 00:34:52]} {[%emt 00:00:32]} 15. Nf1 {[%clk 01:22:14]} {[%emt 00:01:36]}
b5 {[%clk 00:26:21]} {[%emt 00:09:01]} 16. a3 {[%clk 01:20:00]} {[%emt
00:02:44]} a5 {[%clk 00:15:34]} {[%emt 00:11:17]} 17. Ne3 {[%clk 01:11:51]}
{[%emt 00:08:38]} b4 {[%clk 00:15:29]} {[%emt 00:00:36]} 18. Nb5 {[%clk
01:06:19]} {[%emt 00:06:00]} Qb6 {[%clk 00:09:42]} {[%emt 00:06:21]} 19. axb4
{[%clk 00:56:38]} {[%emt 00:10:10]} axb4 {[%clk 00:06:53]} {[%emt 00:03:18]} 20.
Nxd6 {[%clk 00:55:16]} {[%emt 00:01:53]} Rcd8 {[%clk 00:06:34]} {[%emt
00:00:49]} 21. Ndc4 {[%clk 00:54:47]} {[%emt 00:00:59]} Qc7 {[%clk 00:04:07]}
{[%emt 00:02:57]} 22. Nd5 {[%clk 00:49:46]} {[%emt 00:05:31]} Nxd5 {[%clk
00:01:11]} {[%emt 00:03:26]} 23. exd5 {[%clk 00:49:41]} {[%emt 00:00:35]} Bf5
{[%clk 00:01:19]} {[%emt 00:00:22]} 24. Be4 {[%clk 00:47:32]} {[%emt 00:02:38]}
Bxe4 {[%clk 00:01:37]} {[%emt 00:00:12]} 25. Qxe4 {[%clk 00:48:01]} {[%emt
00:00:01]} f5 {[%clk 00:01:43]} {[%emt 00:00:24]} 26. Qxe5 {[%clk 00:35:17]}
{[%emt 00:13:14]} Qxc4 {[%clk 00:02:09]} {[%emt 00:00:04]} 27. Qxe7 {[%clk
00:35:39]} {[%emt 00:00:08]} Rfe8 {[%clk 00:02:33]} {[%emt 00:00:07]} 28. Qb7
{[%clk 00:34:22]} {[%emt 00:01:46]} Qxc2 {[%clk 00:02:33]} {[%emt 00:00:30]} 29.
Qxb4 {[%clk 00:33:42]} {[%emt 00:01:11]} Re2 {[%clk 00:01:56]} {[%emt
00:01:06]} 30. Qf4 {[%clk 00:30:41]} {[%emt 00:03:31]} Rde8 {[%clk 00:01:27]}
{[%emt 00:01:00]} 31. h3 {[%clk 00:30:14]} {[%emt 00:00:56]} Qxb2 {[%clk
00:01:11]} {[%emt 00:00:47]} 32. d6 {[%clk 00:30:00]} {[%emt 00:00:43]} Qb7
{[%clk 00:00:35]} {[%emt 00:01:06]} 33. d7 {[%clk 00:29:56]} {[%emt 00:00:34]}
1-0